lending/lending_fUSD_20250719
["ID","MTS","AMOUNT","RATE_DAILY","PERIOD"]
[373365582,1752969069752,-2214.67,0.00019506,2]
[373365583,1752969069762,-493.16,0.00019506,2]
[373365584,1752969069772,-480.0,0.00019506,2]
[373365585,1752969069781,-334.03,0.00019506,2]
[373365586,1752969069790,-480.0,0.00019506,2]
[373365587,1752969069799,-2410.65,0.00019506,2]
[373365588,1752969069808,-1000.0,0.00019506,2]
[373365589,1752969069818,-480.0,0.00019506,2]
[373365590,1752969069827,-480.0,0.00019506,2]
[373365591,1752969069838,-480.0,0.00019506,2]
[373365592,1752969069847,-1529.67,0.00019506,2]
[373365593,1752969069858,-480.0,0.00019506,2]
[373365594,1752969069867,-480.0,0.00019506,2]
[373365595,1752969069877,-757.31,0.00019506,2]
[373365596,1752969069886,-480.0,0.00019506,2]
[373365597,1752969069895,-480.0,0.00019506,2]
[373365598,1752969069906,-918.64,0.00019506,2]
[373365599,1752969069917,-1858.06,0.00019506,2]
[373365600,1752969069928,-480.0,0.00019506,2]
[373365601,1752969069938,-1198.99,0.00019506,2]
[373365602,1752969069949,-3176.18,0.00019506,2]
[373365603,1752969069959,-789.78,0.00019506,2]
[373365604,1752969069968,-480.0,0.00019506,2]
[373365605,1752969069978,-1230.5,0.00019506,2]
[373365606,1752969069987,-1404.13,0.00019506,2]
[373365607,1752969069997,-900.76,0.00019506,2]
[373365608,1752969070006,-3599.1,0.00019506,2]
[373365609,1752969070015,-1870.61,0.00019506,2]
[373365610,1752969070025,-480.0,0.00019506,2]
[373365611,1752969070035,-480.0,0.00019506,2]
[373365612,1752969070045,-1121.97,0.00019506,2]
[373365613,1752969070055,-480.0,0.00019506,2]
[373365614,1752969070237,-480.0,0.00019506,2]
[373365615,1752969070247,-1257.9,0.00019506,2]
[373365616,1752969070257,-480.0,0.00019506,2]
[373365617,1752969070267,-798.59,0.00019506,2]
[373365618,1752969070277,-480.0,0.00019506,2]
[373365619,1752969070286,-686.13,0.00019506,2]
[373365620,1752969070296,-480.0,0.00019506,2]
[373365621,1752969070305,-1033.68,0.00019506,2]
[373365622,1752969070314,-2396.83,0.00019506,2]
[373365623,1752969070324,-480.0,0.00019506,2]
[373365624,1752969070333,-906.66,0.00019506,2]
[373365625,1752969070343,-1805.61,0.00019506,2]
[373365626,1752969070352,-480.0,0.00019506,2]
[373365627,1752969070362,-674.24,0.00019506,2]
[373365628,1752969070371,-1136.62,0.00019506,2]
[373365629,1752969070381,-847.36,0.00019506,2]
[373365630,1752969070391,-1106.58,0.00019506,2]
[373365631,1752969070400,-1030.85,0.00019506,2]
[373365632,1752969070410,-563.35,0.00019506,2]
[373365633,1752969070419,-480.0,0.00019506,2]
[373365634,1752969070428,-1696.34,0.00019506,2]
[373365635,1752969070437,-4439.75,0.00019506,2]
[373365636,1752969070447,-585.34,0.00019506,2]
[373365637,1752969070456,-1856.23,0.00019506,2]
[373365638,1752969070466,-500.56,0.00019506,2]
[373365639,1752969070475,-3913.18,0.00019506,2]
[373365640,1752969070484,-2584.47,0.00019506,2]
[373365641,1752969070494,-480.0,0.00019506,2]
[373365642,1752969070503,-480.0,0.00019506,2]
[373365643,1752969070512,-530.62,0.00019506,2]
[373365644,1752969070522,-480.0,0.00019506,2]
[373365645,1752969070531,-195.25491076,0.00019506,2]
[373365646,1752969070541,-480.0,0.00019506,2]
[373365647,1752969070550,-480.0,0.00019506,2]
[373365648,1752969070561,-1002.3,0.00019506,2]
[373365649,1752969070571,-480.0,0.00019506,2]
[373365650,1752969070581,-1370.48,0.00019506,2]
[373365651,1752969070591,-1338.78,0.00019506,2]
[373365652,1752969070600,-480.0,0.00019506,2]
[373365653,1752969070611,-947.08,0.00019506,2]
[373365654,1752969070620,-480.0,0.00019506,2]
[373365655,1752969070630,-1249.62,0.00019506,2]
[373365656,1752969070640,-480.0,0.00019506,2]
[373365657,1752969070649,-480.0,0.00019506,2]
[373365658,1752969070658,-711.6,0.00019506,2]
[373365659,1752969070667,-480.0,0.00019506,2]
[373365660,1752969070676,-480.0,0.00019506,2]
[373365661,1752969070685,-823.71,0.00019506,2]
[373365662,1752969070694,-736.37,0.00019506,2]
[373365663,1752969070704,-480.0,0.00019506,2]
[373365664,1752969070713,-480.0,0.00019506,2]
[373365665,1752969070723,-661.84,0.00019506,2]
[373365666,1752969070733,-847.62,0.00019506,2]
[373365667,1752969070742,-480.0,0.00019506,2]
[373365668,1752969070752,-1343.31,0.00019506,2]
[373365669,1752969070761,-480.0,0.00019506,2]
[373365670,1752969070771,-1822.26,0.00019506,2]
[373365671,1752969070780,-4318.28,0.00019506,2]
[373365672,1752969070789,-480.0,0.00019506,2]
[373365673,1752969070799,-480.0,0.00019506,2]
[373365674,1752969070808,-774.19,0.00019506,2]
[373365675,1752969070818,-480.0,0.00019506,2]
[373365676,1752969070827,-1174.49,0.00019506,2]
[373365677,1752969070836,-2874.3,0.00019506,2]
[373365678,1752969070846,-951.44,0.00019506,2]
[373365679,1752969070855,-1691.47,0.00019506,2]
[373365680,1752969070865,-630.63,0.00019506,2]
[373365681,1752969070875,-480.0,0.00019506,2]
[373365682,1752969070884,-700.07,0.00019506,2]
[373365683,1752969070895,-1549.38,0.00019506,2]
[373365684,1752969070904,-5716.84,0.00019506,2]
[373365685,1752969070914,-996.91,0.00019506,2]
[373365686,1752969070923,-4831.41,0.00019506,2]
[373365687,1752969070933,-677.52,0.00019506,2]
[373365688,1752969070942,-480.0,0.00019506,2]
[373365689,1752969070951,-704.05,0.00019506,2]
[373365690,1752969070965,-1263.65,0.00019506,2]
[373365691,1752969070974,-480.0,0.00019506,2]
[373365692,1752969070983,-803.57,0.00019506,2]
[373365693,1752969070993,-480.0,0.00019506,2]
[373365694,1752969071004,-6401.58,0.00019506,2]
[373365695,1752969071014,-1629.05,0.00019506,2]
[373365696,1752969071023,-833.26,0.00019506,2]
[373365697,1752969071033,-480.0,0.00019506,2]
[373365698,1752969071042,-480.0,0.00019506,2]
[373365699,1752969071052,-770.49,0.00019506,2]
[373365700,1752969071061,-1180.58,0.00019506,2]
[373365701,1752969071070,-1068.15,0.00019506,2]
[373365702,1752969071080,-1781.66,0.00019506,2]
[373365703,1752969071089,-513.42,0.00019506,2]
[373365704,1752969071099,-1202.81,0.00019506,2]
[373365705,1752969071108,-673.42,0.00019506,2]
[373365706,1752969071118,-480.0,0.00019506,2]
[373365707,1752969071127,-4542.83,0.00019506,2]
[373365708,1752969071138,-654.87,0.00019506,2]
[373365709,1752969071147,-7527.29,0.00019506,2]
[373365710,1752969071157,-480.0,0.00019506,2]
[373365711,1752969071166,-480.0,0.00019506,2]
[373365712,1752969071175,-7286.77,0.00019506,2]
[373365713,1752969071185,-1270.14,0.00019506,2]
[373365714,1752969071195,-1098.09,0.00019506,2]
[373365715,1752969071204,-572.8,0.00019506,2]
[373365716,1752969071214,-835.06,0.00019506,2]
[373365717,1752969071223,-590.03,0.00019506,2]
[373365718,1752969071233,-1082.49,0.00019506,2]
[373365719,1752969071242,-2403.03,0.00019506,2]
[373365720,1752969071251,-1423.29,0.00019506,2]
[373365721,1752969071261,-480.0,0.00019506,2]
[373365722,1752969071270,-2309.79,0.00019506,2]
[373365723,1752969071279,-1362.51,0.00019506,2]
[373365724,1752969071289,-758.68,0.00019506,2]
[373365725,1752969071298,-1187.56,0.00019506,2]
[373365726,1752969071307,-998.13,0.00019506,2]
[373365727,1752969071317,-1176.16,0.00019506,2]
[373365728,1752969071326,-5455.89,0.00019506,2]
[373365729,1752969071335,-712.89,0.00019506,2]
[373365730,1752969071345,-1065.39,0.00019506,2]
[373365731,1752969071355,-523.74,0.00019506,2]
[373365732,1752969071364,-2390.04,0.00019506,2]
[373365733,1752969071373,-480.0,0.00019506,2]
[373365734,1752969071382,-2407.98,0.00019506,2]
[373365735,1752969071393,-480.0,0.00019506,2]
[373365736,1752969071402,-1594.22,0.00019506,2]
[373365737,1752969071411,-2070.52,0.00019506,2]
[373365738,1752969071421,-480.0,0.00019506,2]
[373365739,1752969071430,-1711.58,0.00019506,2]
[373365740,1752969071439,-845.99,0.00019506,2]
[373365741,1752969071449,-2173.84,0.00019506,2]
[373365742,1752969071458,-933.76,0.00019506,2]
[373365743,1752969071467,-631.99,0.00019506,2]
[373365744,1752969071477,-480.0,0.00019506,2]
[373365745,1752969071486,-643.33,0.00019506,2]
[373365746,1752969071495,-1082.59,0.00019506,2]
[373365747,1752969071504,-480.0,0.00019506,2]
[373365748,1752969071514,-480.0,0.00019506,2]
[373365749,1752969071524,-436.08,0.00019506,2]
[373365750,1752969071533,-1341.37,0.00019506,2]
[373365751,1752969071545,-480.0,0.00019506,2]
[373365752,1752969071555,-951.96,0.00019506,2]
[373365753,1752969071565,-1364.53,0.00019506,2]
[373365754,1752969071574,-1264.86,0.00019506,2]
[373365755,1752969071584,-1205.5,0.00019506,2]
[373365756,1752969071593,-590.9,0.00019506,2]
[373365757,1752969071602,-606.34,0.00019506,2]
[373365758,1752969071611,-2222.73,0.00019506,2]
[373365759,1752969071621,-858.71,0.00019506,2]
[373365760,1752969071630,-2113.9,0.00019506,2]
[373365761,1752969071641,-480.0,0.00019506,2]
[373365762,1752969071650,-744.94,0.00019506,2]
[373365763,1752969071659,-1657.84,0.00019506,2]
[373365764,1752969071669,-489.11,0.00019506,2]
[373365765,1752969071678,-1137.97,0.00019506,2]
[373365766,1752969071687,-1369.89,0.00019506,2]
[373365767,1752969071697,-1296.25,0.00019506,2]
[373365768,1752969071706,-480.0,0.00019506,2]
[373365769,1752969071715,-480.0,0.00019506,2]
[373365770,1752969071726,-1298.9,0.00019506,2]
[373365771,1752969071735,-480.0,0.00019506,2]
[373365772,1752969071745,-480.0,0.00019506,2]
[373365773,1752969071755,-10867.87,0.00019506,2]
[373365774,1752969071765,-480.0,0.00019506,2]
[373365775,1752969071774,-1221.92,0.00019506,2]
[373365776,1752969071783,-480.0,0.00019506,2]
[373365777,1752969071793,-6502.67462907,0.00019516,2]
[373365778,1752969071802,-5894.59968886,0.00019516,2]
[373365779,1752969071812,-512.188707,0.00019521,2]
[373365780,1752969071821,-151.0,0.00019524,2]
[373365781,1752969071831,-151.0,0.00019524,2]
[373365782,1752969071840,-151.0,0.00019524,2]
[373365783,1752969071849,-151.0,0.00019524,2]
[373365784,1752969071859,-201.230558,0.00019524,2]
[373365785,1752969071868,-201.230558,0.00019524,2]
[373365786,1752969071878,-422.172838,0.00019524,2]
[373365787,1752969071888,-422.172838,0.00019524,2]
[373365788,1752969071897,-190.15,0.00019543,2]
[373365789,1752969071906,-165.28,0.00019545,2]
[373365790,1752969071915,-250.0,0.00019548,2]
[373365791,1752969071924,-150.0,0.00019548,2]
[373365792,1752969071934,-151.01490572,0.00019548,2]
[373365793,1752969071944,-166.33933359,0.00019548,2]
[373365794,1752969071953,-150.0,0.00019548,2]
[373365795,1752969071963,-500.0,0.00019548,2]
[373365796,1752969071976,-2370.0,0.00019548,2]
[373365797,1752969071986,-251.38534347,0.00019548,2]
[373365798,1752969071996,-500.0,0.00019548,2]
[373365799,1752969072005,-150.0,0.00019548,2]
[373365800,1752969072015,-150.0,0.00019548,2]
[373365801,1752969072023,-150.0,0.00019548,2]
[373365802,1752969072033,-500.0,0.00019548,2]
[373365803,1752969072042,-500.0,0.00019548,2]
[373365804,1752969072052,-150.0,0.00019548,2]
[373365805,1752969072063,-569.60737388,0.00019548,2]
[373365806,1752969072072,-150.0,0.00019548,2]
[373365807,1752969072081,-500.0,0.00019548,2]
[373365808,1752969072092,-150.0,0.00019548,2]
[373365809,1752969072101,-250.0,0.00019548,2]
[373365810,1752969072110,-500.0,0.00019548,2]
[373365811,1752969072120,-1294.0,0.00019548,2]
[373365812,1752969072130,-500.0,0.00019548,2]
[373365813,1752969072139,-200.0,0.00019548,2]
[373365814,1752969072148,-1339.0,0.00019548,2]
[373365815,1752969072158,-500.0,0.00019548,2]
[373365816,1752969072170,-500.0,0.00019548,2]
[373365817,1752969072179,-200.0,0.00019548,2]
[373365818,1752969072189,-286.3225368,0.00019548,2]
[373365819,1752969072200,-4927.0,0.00019548,2]
[373365820,1752969072210,-641.13063196,0.00019555,2]
[373365821,1752969072221,-341.31009588,0.00019559,2]
[373365822,1752969072231,-150.0,0.00019559,2]
[373365823,1752969072241,-172.11,0.00019562,2]
[373365824,1752969072251,-292.99,0.00019562,2]
[373365825,1752969072262,-357.46,0.00019562,2]
[373365826,1752969072271,-1174.01,0.00019562,2]
[373365827,1752969072281,-168.0,0.00019569,2]
[373365828,1752969072291,-165.28,0.00019584,2]
[373365829,1752969072302,-190.14205266,0.00019587,2]
[373365830,1752969072313,-3207.75,0.000196,2]
[373365831,1752969072323,-151.0,0.00019602,2]
[373365832,1752969072333,-165.37,0.00019606,2]
[373365833,1752969072342,-541.71,0.00019615,2]
[373365834,1752969072351,-541.71,0.00019615,2]
[373365835,1752969072361,-1560.48,0.00019615,2]
[373365836,1752969072370,-1560.48,0.00019615,2]
[373365837,1752969072379,-151.0,0.00019616,2]
[373365838,1752969072389,-151.0,0.00019616,2]
[373365839,1752969072398,-151.0,0.00019616,2]
[373365840,1752969072408,-151.0,0.00019616,2]
[373365841,1752969072417,-151.0,0.00019616,2]
[373365842,1752969072426,-151.0,0.00019616,2]
[373365843,1752969072435,-198.734952,0.00019616,2]
[373365844,1752969072445,-198.423926,0.00019616,2]
[373365845,1752969072454,-198.423926,0.00019616,2]
[373365846,1752969072463,-151.0,0.00019616,2]
[373365847,1752969072473,-151.0,0.00019616,2]
[373365848,1752969072482,-166.771639,0.00019616,2]
[373365849,1752969072491,-166.771639,0.00019616,2]
[373365850,1752969072501,-151.0,0.00019616,2]
[373365851,1752969072510,-151.0,0.00019616,2]
[373365852,1752969072520,-177.347083,0.00019616,2]
[373365853,1752969072529,-151.0,0.00019616,2]
[373365854,1752969072538,-171.879904,0.00019616,2]
[373365855,1752969072548,-171.879904,0.00019616,2]
[373365856,1752969072557,-151.0,0.00019616,2]
[373365857,1752969072567,-151.0,0.00019616,2]
[373365858,1752969072576,-151.0,0.00019616,2]
[373365859,1752969072586,-151.0,0.00019616,2]
[373365860,1752969072596,-151.0,0.00019616,2]
[373365861,1752969072605,-151.0,0.00019616,2]
[373365862,1752969072615,-151.0,0.00019616,2]
[373365863,1752969072624,-151.0,0.00019616,2]
[373365864,1752969072633,-151.0,0.00019616,2]
[373365865,1752969072644,-151.0,0.00019616,2]
[373365866,1752969072653,-163.070163,0.00019616,2]
[373365867,1752969072663,-383.900494,0.00019616,2]
[373365868,1752969072672,-409.308374,0.00019616,2]
[373365869,1752969072682,-364.762199,0.00019616,2]
[373365870,1752969072691,-151.0,0.00019616,2]
[373365871,1752969072701,-151.0,0.00019616,2]
[373365872,1752969072710,-151.0,0.00019616,2]
[373365873,1752969072720,-457.951232,0.00019616,2]
[373365874,1752969072730,-457.951232,0.00019616,2]
[373365875,1752969072739,-151.0,0.00019616,2]
[373365876,1752969072748,-295.927214,0.00019616,2]
[373365877,1752969072758,-201.230558,0.00019616,2]
[373365878,1752969072767,-201.230558,0.00019616,2]
[373365879,1752969072776,-422.172838,0.00019616,2]
[373365880,1752969072786,-422.172838,0.00019616,2]
[373365881,1752969072795,-151.0,0.00019616,2]
[373365882,1752969072804,-172.722988,0.00019616,2]
[373365883,1752969072814,-277.516707,0.00019616,2]
[373365884,1752969072823,-151.0,0.00019616,2]
[373365885,1752969072833,-151.0,0.00019616,2]
[373365886,1752969072842,-151.0,0.00019616,2]
[373365887,1752969072852,-151.0,0.00019616,2]
[373365888,1752969072861,-151.0,0.00019616,2]
[373365889,1752969072871,-218.25184,0.00019616,2]
[373365890,1752969072880,-218.25184,0.00019616,2]
[373365891,1752969072890,-151.0,0.00019616,2]
[373365892,1752969072899,-151.0,0.00019616,2]
[373365893,1752969072909,-151.0,0.00019616,2]
[373365894,1752969072919,-151.0,0.00019616,2]
[373365895,1752969073091,-151.0,0.00019616,2]
[373365896,1752969073101,-352.974085,0.00019616,2]
[373365897,1752969073111,-352.974085,0.00019616,2]
[373365898,1752969073121,-151.0,0.00019616,2]
[373365899,1752969073131,-151.0,0.00019616,2]
[373365900,1752969073141,-151.0,0.00019616,2]
[373365901,1752969073150,-160.240419,0.00019616,2]
[373365902,1752969073160,-281.117536,0.00019616,2]
[373365903,1752969073170,-281.117536,0.00019616,2]
[373365904,1752969073181,-512.67,0.00019616,2]
[373365905,1752969073191,-151.0,0.00019616,2]
[373365906,1752969073200,-151.0,0.00019616,2]
[373365907,1752969073209,-200.378326,0.00019616,2]
[373365908,1752969073220,-200.378326,0.00019616,2]
[373365909,1752969073232,-151.0,0.00019616,2]
[373365910,1752969073241,-151.0,0.00019616,2]
[373365911,1752969073251,-480.0,0.00019616,2]
[373365912,1752969073261,-480.0,0.00019616,2]
[373365913,1752969073271,-480.0,0.00019616,2]
[373365914,1752969073281,-151.0,0.00019616,2]
[373365915,1752969073293,-151.0,0.00019616,2]
[373365916,1752969073303,-151.0,0.00019616,2]
[373365917,1752969073312,-151.0,0.00019616,2]
[373365918,1752969073323,-480.0,0.00019616,2]
[373365919,1752969073333,-480.0,0.00019616,2]
[373365920,1752969073343,-151.0,0.00019616,2]
[373365921,1752969073354,-151.0,0.00019616,2]
[373365922,1752969073364,-480.0,0.00019616,2]
[373365923,1752969073375,-539.0,0.00019616,2]
[373365924,1752969073385,-480.0,0.00019616,2]
[373365925,1752969073395,-480.0,0.00019616,2]
[373365926,1752969073404,-480.0,0.00019616,2]
[373365927,1752969073414,-480.0,0.00019616,2]
[373365928,1752969073424,-480.0,0.00019616,2]
[373365929,1752969073433,-480.0,0.00019616,2]
[373365930,1752969073443,-480.0,0.00019616,2]
[373365931,1752969073452,-480.0,0.00019616,2]
[373365932,1752969073461,-480.0,0.00019616,2]
[373365933,1752969073471,-480.0,0.00019616,2]
[373365934,1752969073480,-480.0,0.00019616,2]
[373365935,1752969073490,-1432.69,0.00019616,2]
[373365936,1752969073499,-480.0,0.00019616,2]
[373365937,1752969073509,-480.0,0.00019616,2]
[373365938,1752969073519,-384.74664448,0.00019616,2]
[373365939,1752969073528,-480.0,0.00019616,2]
[373365940,1752969073538,-480.0,0.00019616,2]
[373365941,1752969073547,-480.0,0.00019616,2]
[373365942,1752969073557,-480.0,0.00019616,2]
[373365943,1752969073567,-480.0,0.00019616,2]
[373365944,1752969073576,-525.05,0.00019616,2]
[373365945,1752969073586,-480.0,0.00019616,2]
[373365946,1752969073595,-739.94,0.00019616,2]
[373365947,1752969073604,-597.34,0.00019616,2]
[373365948,1752969073614,-595.53,0.00019616,2]
[373365949,1752969073625,-562.7,0.00019616,2]
[373365950,1752969073634,-480.0,0.00019616,2]
[373365951,1752969073645,-480.0,0.00019616,2]
[373365952,1752969073655,-480.0,0.00019616,2]
[373365953,1752969073664,-725.42,0.00019616,2]
[373365954,1752969073673,-480.0,0.00019616,2]
[373365955,1752969073683,-480.0,0.00019616,2]
[373365956,1752969073693,-1026.84,0.00019616,2]
[373365957,1752969073702,-480.0,0.00019616,2]
[373365958,1752969073712,-480.0,0.00019616,2]
[373365959,1752969073722,-480.0,0.00019616,2]
[373365960,1752969073731,-480.0,0.00019616,2]
[373365961,1752969073740,-480.0,0.00019616,2]
[373365962,1752969073750,-985.98,0.00019616,2]
[373365963,1752969073759,-480.0,0.00019616,2]
[373365964,1752969073768,-480.0,0.00019616,2]
[373365965,1752969073778,-480.0,0.00019616,2]
[373365966,1752969073787,-480.0,0.00019616,2]
[373365967,1752969073796,-480.0,0.00019616,2]
[373365968,1752969073806,-480.0,0.00019616,2]
[373365969,1752969073815,-480.0,0.00019616,2]
[373365970,1752969073825,-480.0,0.00019616,2]
[373365971,1752969073834,-711.26,0.00019616,2]
[373365972,1752969073844,-723.22,0.00019616,2]
[373365973,1752969073853,-480.0,0.00019616,2]
[373365974,1752969073863,-480.0,0.00019616,2]
[373365975,1752969073872,-480.0,0.00019616,2]
[373365976,1752969073882,-480.0,0.00019616,2]
[373365977,1752969073892,-813.19,0.00019616,2]
[373365978,1752969073901,-480.0,0.00019616,2]
[373365979,1752969073911,-480.0,0.00019616,2]
[373365980,1752969073921,-552.67,0.00019616,2]
[373365981,1752969073931,-480.0,0.00019616,2]
[373365982,1752969073940,-480.0,0.00019616,2]
[373365983,1752969073950,-480.0,0.00019616,2]
[373365984,1752969073959,-553.94,0.00019616,2]
[373365985,1752969073969,-480.0,0.00019616,2]
[373365986,1752969073978,-480.0,0.00019616,2]
[373365987,1752969073988,-480.0,0.00019616,2]
[373365988,1752969073997,-480.0,0.00019616,2]
[373365989,1752969074006,-808.09,0.00019616,2]
[373365990,1752969074016,-480.0,0.00019616,2]
[373365991,1752969074025,-1118.97,0.00019616,2]
[373365992,1752969074035,-480.0,0.00019616,2]
[373365993,1752969074044,-480.0,0.00019616,2]
[373365994,1752969074054,-480.0,0.00019616,2]
[373365995,1752969074065,-480.0,0.00019616,2]
[373365996,1752969074075,-480.0,0.00019616,2]
[373365997,1752969074084,-480.0,0.00019616,2]
[373365998,1752969074095,-737.81,0.00019616,2]
[373365999,1752969074108,-480.0,0.00019616,2]
[373366000,1752969074118,-480.0,0.00019616,2]
[373366001,1752969074129,-480.0,0.00019616,2]
[373366002,1752969074139,-480.0,0.00019616,2]
[373366003,1752969074148,-480.0,0.00019616,2]
[373366004,1752969074158,-480.0,0.00019616,2]
[373366005,1752969074168,-480.0,0.00019616,2]
[373366006,1752969074179,-480.0,0.00019616,2]
[373366007,1752969074190,-480.0,0.00019616,2]
[373366008,1752969074200,-603.91,0.00019616,2]
[373366009,1752969074210,-624.05,0.00019616,2]
[373366010,1752969074221,-598.17,0.00019616,2]
[373366011,1752969074232,-480.0,0.00019616,2]
[373366012,1752969074244,-480.0,0.00019616,2]
[373366013,1752969074254,-1079.43,0.00019616,2]
[373366014,1752969074264,-480.0,0.00019616,2]
[373366015,1752969074273,-748.04,0.00019616,2]
[373366016,1752969074285,-336.46,0.00019616,2]
[373366017,1752969074296,-1769.09,0.00019616,2]
[373366018,1752969074306,-480.0,0.00019616,2]
[373366019,1752969074318,-864.0,0.00019616,2]
[373366020,1752969074328,-573.4,0.00019616,2]
[373366021,1752969074339,-480.0,0.00019616,2]
[373366022,1752969074350,-505.35,0.00019616,2]
[373366023,1752969074359,-480.0,0.00019616,2]
[373366024,1752969074370,-480.0,0.00019616,2]
[373366025,1752969074379,-480.0,0.00019616,2]
[373366026,1752969074404,-480.0,0.00019616,2]
[373366027,1752969074420,-480.0,0.00019616,2]
[373366028,1752969074438,-480.0,0.00019616,2]
[373366029,1752969074456,-480.0,0.00019616,2]
[373366030,1752969074472,-480.0,0.00019616,2]
[373366031,1752969074492,-978.33,0.00019616,2]
[373366032,1752969074511,-480.0,0.00019616,2]
[373366033,1752969074528,-480.0,0.00019616,2]
[373366034,1752969074545,-480.0,0.00019616,2]
[373366035,1752969074562,-480.0,0.00019616,2]
[373366036,1752969074579,-480.0,0.00019616,2]
[373366037,1752969074599,-480.0,0.00019616,2]
[373366038,1752969074617,-480.0,0.00019616,2]
[373366039,1752969074630,-1583.23,0.00019616,2]
[373366040,1752969074649,-480.0,0.00019616,2]
[373366041,1752969074661,-480.0,0.00019616,2]
[373366042,1752969074678,-480.0,0.00019616,2]
[373366043,1752969074694,-480.0,0.00019616,2]
[373366044,1752969074706,-775.67,0.00019616,2]
[373366045,1752969074724,-233.35806566,0.00019616,2]
[373366046,1752969074741,-480.0,0.00019616,2]
[373366047,1752969074758,-946.16,0.00019616,2]
[373366048,1752969074773,-480.0,0.00019616,2]
[373366049,1752969074790,-481.74,0.00019616,2]
[373366050,1752969074805,-673.5,0.00019616,2]
[373366051,1752969074820,-480.0,0.00019616,2]
[373366052,1752969074836,-869.48,0.00019616,2]
[373366053,1752969074851,-480.0,0.00019616,2]
[373366054,1752969074865,-480.0,0.00019616,2]
[373366055,1752969074880,-480.0,0.00019616,2]
[373366056,1752969074895,-480.0,0.00019616,2]
[373366057,1752969074909,-480.0,0.00019616,2]
[373366058,1752969074924,-512.23,0.00019616,2]
[373366059,1752969074938,-480.0,0.00019616,2]
[373366060,1752969074953,-480.0,0.00019616,2]
[373366061,1752969074968,-480.0,0.00019616,2]
[373366062,1752969074985,-933.7,0.00019616,2]
[373366063,1752969075000,-480.0,0.00019616,2]
[373366064,1752969075015,-480.0,0.00019616,2]
[373366065,1752969075029,-600.66,0.00019616,2]
[373366066,1752969075046,-480.0,0.00019616,2]
[373366067,1752969075061,-480.0,0.00019616,2]
[373366068,1752969075076,-804.46,0.00019616,2]
[373366069,1752969075091,-480.0,0.00019616,2]
[373366070,1752969075106,-480.0,0.00019616,2]
[373366071,1752969075122,-663.81,0.00019616,2]
[373366072,1752969075136,-480.0,0.00019616,2]
[373366073,1752969075152,-480.0,0.00019616,2]
[373366074,1752969075166,-480.0,0.00019616,2]
[373366075,1752969075180,-480.0,0.00019616,2]
[373366076,1752969075194,-480.0,0.00019616,2]
[373366077,1752969075211,-480.0,0.00019616,2]
[373366078,1752969075225,-602.12,0.00019616,2]
[373366079,1752969075239,-480.0,0.00019616,2]
[373366080,1752969075252,-770.09,0.00019616,2]
[373366081,1752969075266,-613.07,0.00019616,2]